fUST/lending_fUST_20250821
["ID","MTS","AMOUNT","RATE_DAILY","PERIOD"]
[380467302,1755784242077,-480.0,0.00021917,3]
[380467304,1755784242087,-924.84,0.00021917,3]
[380467306,1755784242096,-480.0,0.00021917,3]
[380467308,1755784242108,-960.11,0.00021917,3]
[380467310,1755784242117,-960.11,0.00021917,3]
[380467312,1755784242127,-960.11,0.00021917,3]
[380467314,1755784242136,-960.11,0.00021917,3]
[380467316,1755784242145,-960.11,0.00021917,3]
[380467318,1755784242155,-960.11,0.00021917,3]
[380467319,1755784242164,-960.11,0.00021917,3]
[380467321,1755784242174,-960.11,0.00021917,3]
[380467323,1755784242183,-960.11,0.00021917,3]
[380467325,1755784242193,-960.11,0.00021917,3]
[380467327,1755784242202,-349.94231473,0.00021917,3]
[380467329,1755784242211,-960.11,0.00021917,3]
[380467331,1755784242222,-960.11,0.00021917,3]
[380467333,1755784242231,-960.11,0.00021917,3]
[380467335,1755784242240,-480.0,0.00021917,3]
[380467337,1755784242250,-960.11,0.00021917,3]
[380467340,1755784242259,-960.11,0.00021917,3]
[380467342,1755784242270,-960.11,0.00021917,3]
[380467344,1755784242280,-960.11,0.00021917,3]
[380467346,1755784242289,-960.11,0.00021917,3]
[380467348,1755784242298,-960.11,0.00021917,3]
[380467350,1755784242307,-545.32,0.00021917,3]
[380467352,1755784242316,-960.11,0.00021917,3]
[380467353,1755784242326,-960.11,0.00021917,3]
[380467355,1755784242335,-960.11,0.00021917,3]
[380467357,1755784242345,-960.11,0.00021917,3]
[380467360,1755784242355,-480.0,0.00021917,3]
[380467362,1755784242365,-960.28816894,0.00021917,3]
[380467364,1755784242375,-480.0,0.00021917,3]
[380467366,1755784242384,-552.22,0.00021917,3]
[380467367,1755784242397,-1788.43,0.00021917,3]
[380467371,1755784242407,-480.0,0.00021917,3]
[380467373,1755784242416,-480.0,0.00021917,3]
[380467375,1755784242427,-3071.49,0.00021917,3]
[380467377,1755784242436,-2352.14,0.00021917,3]
[380467378,1755784242445,-480.0,0.00021917,3]
[380467380,1755784242454,-961.15,0.00021917,3]
[380467383,1755784242464,-480.0,0.00021917,3]
[380467386,1755784242473,-480.0,0.00021917,3]
[380467390,1755784242482,-480.0,0.00021917,3]
[380467391,1755784242491,-480.0,0.00021917,3]
[380467394,1755784242500,-480.0,0.00021917,3]
[380467398,1755784242510,-1473.97,0.00021917,3]
[380467400,1755784242519,-480.0,0.00021917,3]
[380467405,1755784242528,-542.55,0.00021917,3]
[380467407,1755784242537,-480.0,0.00021917,3]
[380467410,1755784242546,-480.0,0.00021917,3]
[380467413,1755784242555,-480.0,0.00021917,3]
[380467416,1755784242565,-480.0,0.00021917,3]
[380467419,1755784242574,-531.95,0.00021917,3]
[380467421,1755784242583,-441.52363168,0.00021917,3]
[380467423,1755784242592,-480.0,0.00021917,3]
[380467426,1755784242608,-846.22,0.00021917,3]
[380467428,1755784242617,-480.88,0.00021917,3]
[380467430,1755784242626,-480.0,0.00021917,3]
[380467432,1755784242635,-480.0,0.00021917,3]
[380467433,1755784242646,-480.0,0.00021917,3]
[380467436,1755784242656,-480.0,0.00021917,3]
[380467437,1755784242665,-480.0,0.00021917,3]
[380467439,1755784242676,-765.88,0.00021917,3]
[380467442,1755784242688,-480.0,0.00021917,3]
[380467444,1755784242698,-480.0,0.00021917,3]
[380467445,1755784242707,-480.0,0.00021917,3]
[380467447,1755784242716,-480.0,0.00021917,3]
[380467450,1755784242726,-572.46,0.00021917,3]
[380467451,1755784242735,-480.0,0.00021917,3]
[380467453,1755784242745,-480.0,0.00021917,3]
[380467455,1755784242754,-480.0,0.00021917,3]
[380467457,1755784242764,-480.0,0.00021917,3]
[380467459,1755784242774,-480.0,0.00021917,3]
[380467461,1755784242783,-480.0,0.00021917,3]
[380467463,1755784242793,-480.0,0.00021917,3]
[380467465,1755784242802,-620.46535902,0.00021917,3]
[380467467,1755784242812,-594.91,0.00021917,3]
[380467469,1755784242821,-765.95,0.00021917,3]
[380467471,1755784242830,-480.0,0.00021917,3]
[380467473,1755784242839,-480.0,0.00021917,3]
[380467475,1755784242848,-480.0,0.00021917,3]
[380467482,1755784242905,-480.0,0.00021917,3]
[380467484,1755784242915,-480.0,0.00021917,3]
[380467486,1755784242924,-1795.65,0.00021917,3]
[380467488,1755784242934,-535.14,0.00021917,3]
[380467490,1755784242944,-664.79,0.00021917,3]
[380467492,1755784242953,-480.0,0.00021917,3]
[380467494,1755784242962,-526.78,0.00021917,3]
[380467496,1755784242972,-480.0,0.00021917,3]
[380467498,1755784242981,-470.49463778,0.00021917,3]
[380467501,1755784242991,-480.0,0.00021917,3]
[380467504,1755784243000,-615.63037563,0.00021917,3]
[380467507,1755784243010,-518.18,0.00021917,3]
[380467510,1755784243020,-480.0,0.00021917,3]
[380467512,1755784243029,-480.0,0.00021917,3]
[380467514,1755784243038,-480.0,0.00021917,3]
[380467516,1755784243047,-480.0,0.00021917,3]
[380467518,1755784243056,-480.0,0.00021917,3]
[380467520,1755784243066,-480.0,0.00021917,3]
[380467522,1755784243075,-3076.49,0.00021917,2]
[380467525,1755784243093,-1865.31,0.00021917,3]
[380467527,1755784243104,-462.06618457,0.00021917,3]
[380467529,1755784243116,-480.0,0.00021917,3]
[380467531,1755784243125,-4527.87,0.00021917,3]
[380467533,1755784243134,-480.0,0.00021917,3]
[380467535,1755784243143,-582.62824431,0.00021917,3]
[380467537,1755784243152,-480.0,0.00021917,3]
[380467539,1755784243161,-480.0,0.00021917,3]
[380467541,1755784243170,-480.0,0.00021917,3]
[380467543,1755784243179,-480.0,0.00021917,3]
[380467545,1755784243188,-480.0,0.00021917,3]
[380467547,1755784243197,-480.0,0.00021917,3]
[380467549,1755784243206,-977.28,0.00021917,3]
[380467551,1755784243215,-704.13,0.00021917,3]
[380467553,1755784243224,-837.28,0.00021917,3]
[380467555,1755784243234,-480.0,0.00021917,3]
[380467557,1755784243243,-1168.83,0.00021917,3]
[380467559,1755784243253,-2695.37,0.00021917,3]
[380467561,1755784243262,-6802.91,0.00021917,3]
[380467563,1755784243271,-480.0,0.00021917,3]
[380467565,1755784243281,-1329.4,0.00021917,3]
[380467567,1755784243290,-1484.97,0.00021917,3]
[380467569,1755784243299,-480.0,0.00021917,3]
[380467571,1755784243308,-511.9,0.00021917,3]
[380467573,1755784243317,-480.0,0.00021917,3]
[380467575,1755784243327,-593.83,0.00021917,3]
[380467577,1755784243336,-480.0,0.00021917,3]
[380467579,1755784243345,-604.63,0.00021917,3]
[380467581,1755784243357,-480.0,0.00021917,3]
[380467583,1755784243366,-480.0,0.00021917,3]
[380467585,1755784243375,-628.5,0.00021917,3]
[380467587,1755784243384,-524.67,0.00021917,3]
[380467589,1755784243394,-480.0,0.00021917,3]
[380467591,1755784243403,-1657.31,0.00021917,3]
[380467593,1755784243412,-480.0,0.00021917,3]
[380467595,1755784243421,-1147.84,0.00021917,3]
[380467597,1755784243430,-470.75083041,0.00021917,3]
[380467599,1755784243439,-480.0,0.00021917,3]
[380467601,1755784243448,-1047.6,0.00021917,3]
[380467602,1755784243458,-480.0,0.00021917,3]
[380467604,1755784243467,-481.73,0.00021917,3]
[380467606,1755784243477,-480.0,0.00021917,3]
[380467609,1755784243487,-1008.02,0.00021917,3]
[380467611,1755784243496,-498.12,0.00021917,3]
[380467613,1755784243505,-1691.8,0.00021917,3]
[380467615,1755784243515,-151.0,0.00021917,2]
[380467616,1755784243524,-848.21,0.00021917,3]
[380467618,1755784243533,-1011.92,0.00021917,3]
[380467620,1755784243543,-878.75,0.00021917,3]
[380467622,1755784243551,-480.0,0.00021917,3]
[380467624,1755784243560,-480.0,0.00021917,3]
[380467626,1755784243570,-481.92935099,0.00021917,3]
[380467628,1755784243579,-500.0,0.00021917,3]
[380467631,1755784243589,-566.67,0.00021917,3]
[380467633,1755784243600,-861.91,0.00021917,3]
[380467634,1755784243614,-480.0,0.00021917,3]
[380467636,1755784243623,-637.14,0.00021917,3]
[380467638,1755784243633,-480.0,0.00021917,3]
[380467640,1755784243642,-480.0,0.00021917,3]
[380467642,1755784243652,-480.0,0.00021917,3]
[380467644,1755784243661,-480.0,0.00021917,3]
[380467646,1755784243670,-954.1,0.00021917,3]
[380467648,1755784243679,-480.0,0.00021917,3]
[380467650,1755784243690,-151.0,0.00021917,2]
[380467652,1755784243699,-480.0,0.00021917,3]
[380467654,1755784243708,-1569.83,0.00021917,3]
[380467656,1755784243717,-953.28,0.00021917,3]
[380467658,1755784243727,-480.0,0.00021917,3]
[380467660,1755784243736,-1069.73,0.00021917,2]
[380467662,1755784243745,-500.0,0.00021917,3]
[380467664,1755784243754,-500.0,0.00021917,3]
[380467666,1755784243763,-500.0,0.00021917,3]
[380467668,1755784243772,-492.54,0.00021917,3]
[380467670,1755784243782,-500.0,0.00021917,3]
[380467672,1755784243791,-500.0,0.00021917,3]
[380467674,1755784243800,-480.0,0.00021917,3]
[380467676,1755784243809,-480.0,0.00021917,3]
[380467678,1755784243818,-151.0,0.00021917,2]
[380467680,1755784243827,-422.52932423,0.00021917,3]
[380467682,1755784243836,-1945.47,0.00021917,3]
[380467684,1755784243844,-480.0,0.00021917,3]
[380467686,1755784243853,-480.0,0.00021917,3]
[380467688,1755784243866,-480.0,0.00021917,3]
[380467689,1755784243875,-480.0,0.00021917,3]
[380467691,1755784243884,-480.0,0.00021917,3]
[380467693,1755784243894,-480.0,0.00021917,3]
[380467696,1755784243903,-480.0,0.00021917,3]
[380467698,1755784243913,-421.66262795,0.00021917,3]
[380467699,1755784243922,-10761.45,0.00021917,3]
[380467701,1755784243931,-480.0,0.00021917,3]
[380467703,1755784243940,-480.0,0.00021917,3]
[380467706,1755784243950,-480.0,0.00021917,3]
[380467708,1755784243961,-1192.65,0.00021917,3]
[380467709,1755784243970,-480.0,0.00021917,3]
[380467711,1755784243979,-181.915348,0.00021917,2]
[380467714,1755784243988,-480.0,0.00021917,3]
[380467715,1755784243997,-2150.08,0.00021917,3]
[380467717,1755784244007,-480.0,0.00021917,3]
[380467719,1755784244016,-891.25,0.00021917,3]
[380467721,1755784244026,-6506.65,0.00021917,3]
[380467723,1755784244035,-2075.2,0.00021917,3]
[380467725,1755784244044,-181.915348,0.00021917,2]
[380467727,1755784244053,-1182.67,0.00021917,3]
[380467729,1755784244062,-480.0,0.00021917,3]
[380467731,1755784244071,-181.915348,0.00021917,2]
[380467733,1755784244080,-2832.33,0.00021917,3]
[380467735,1755784244089,-480.0,0.00021917,3]
[380467737,1755784244099,-480.0,0.00021917,3]
[380467739,1755784244112,-480.0,0.00021917,3]
[380467742,1755784244122,-151.0,0.00021917,2]
[380467743,1755784244132,-480.0,0.00021917,3]
[380467745,1755784244141,-909.41,0.00021917,3]
[380467747,1755784244151,-181.915348,0.00021917,2]
[380467749,1755784244160,-480.0,0.00021917,3]
[380467751,1755784244170,-1109.68,0.00021917,3]
[380467753,1755784244179,-480.0,0.00021917,3]
[380467755,1755784244188,-480.0,0.00021917,3]
[380467757,1755784244197,-1751.79,0.00021917,3]
[380467759,1755784244207,-1913.22,0.00021917,3]
[380467761,1755784244216,-1156.28,0.00021917,3]
[380467763,1755784244230,-440.61820503,0.00021917,3]
[380467765,1755784244240,-480.0,0.00021917,3]
[380467767,1755784244250,-480.0,0.00021917,3]
[380467769,1755784244261,-1242.0,0.00021917,3]
[380467771,1755784244270,-151.0,0.00021917,2]
[380467773,1755784244280,-480.0,0.00021917,3]
[380467775,1755784244289,-480.0,0.00021917,3]
[380467777,1755784244306,-5256.79,0.00021917,3]
[380467779,1755784244321,-151.0,0.00021917,2]
[380467781,1755784244330,-480.0,0.00021917,3]
[380467783,1755784244339,-480.0,0.00021917,3]
[380467785,1755784244350,-151.0,0.00021917,2]
[380467787,1755784244362,-480.0,0.00021917,3]
[380467789,1755784244371,-480.0,0.00021917,3]
[380467791,1755784244380,-480.0,0.00021917,3]
[380467793,1755784244389,-480.0,0.00021917,3]
[380467795,1755784244398,-480.0,0.00021917,3]
[380467797,1755784244407,-480.0,0.00021917,3]
[380467799,1755784244416,-693.34,0.00021917,3]
[380467801,1755784244426,-480.0,0.00021917,3]
[380467803,1755784244435,-870.78,0.00021917,3]
[380467805,1755784244446,-1273.23,0.00021917,3]
[380467807,1755784244455,-1998.85,0.00021917,3]
[380467809,1755784244464,-2662.61,0.00021917,3]
[380467811,1755784244473,-480.0,0.00021917,3]
[380467813,1755784244483,-1008.22,0.00021917,3]
[380467815,1755784244492,-480.0,0.00021917,3]
[380467817,1755784244501,-151.0,0.00021917,2]
[380467819,1755784244511,-480.0,0.00021917,3]
[380467821,1755784244520,-151.0,0.00021917,2]
[380467823,1755784244529,-151.0,0.00021917,2]
[380467825,1755784244538,-480.0,0.00021917,3]
[380467827,1755784244548,-625.97,0.00021917,3]
[380467829,1755784244557,-151.0,0.00021917,2]
[380467831,1755784244566,-2782.41,0.00021917,3]
[380467833,1755784244576,-489.44,0.00021917,3]
[380467835,1755784244585,-764.56,0.00021917,3]
[380467837,1755784244596,-2632.47,0.00021917,3]
[380467839,1755784244609,-480.0,0.00021917,3]
[380467841,1755784244623,-618.09,0.00021917,3]
[380467843,1755784244633,-480.0,0.00021917,3]
[380467845,1755784244643,-480.0,0.00021917,3]
[380467847,1755784244653,-480.0,0.00021917,3]
[380467848,1755784244663,-4375.13,0.00021917,3]
[380467851,1755784244672,-480.0,0.00021917,3]
[380467853,1755784244683,-1119.38,0.00021917,3]
[380467855,1755784244693,-215.86710461,0.00021917,3]
[380467857,1755784244703,-1528.51,0.00021917,3]
[380467859,1755784244713,-480.0,0.00021917,3]
[380467860,1755784244723,-461.64217663,0.00021917,3]
[380467861,1755784244733,-151.0,0.00021917,2]
[380467862,1755784244742,-344.31206177,0.00021917,3]
[380467863,1755784244752,-480.0,0.00021917,3]
[380467864,1755784244762,-4590.66,0.00021917,3]
[380467865,1755784244771,-480.0,0.00021917,3]
[380467866,1755784244781,-480.0,0.00021917,3]
[380467867,1755784244790,-480.0,0.00021917,3]
[380467868,1755784244799,-480.0,0.00021917,3]
[380467869,1755784244809,-3387.36,0.00021917,3]
[380467870,1755784244819,-1442.8,0.00021917,3]
[380467871,1755784244828,-480.0,0.00021917,3]
[380467872,1755784244837,-459.40197119,0.00021917,3]
[380467873,1755784244846,-261.31949521,0.00021917,3]
[380467874,1755784244859,-5475.74,0.00021917,3]
[380467875,1755784244868,-480.0,0.00021917,3]
[380467876,1755784244878,-480.0,0.00021917,3]
[380467877,1755784244887,-480.0,0.00021917,3]
[380467878,1755784244896,-1398.34,0.00021917,3]
[380467880,1755784244906,-701.21,0.00021917,3]
[380467882,1755784244916,-1339.72,0.00021917,3]
[380467884,1755784244926,-480.0,0.00021917,3]
[380467886,1755784244935,-4764.76,0.00021917,3]
[380467888,1755784244944,-480.0,0.00021917,3]
[380467890,1755784244954,-480.0,0.00021917,3]
[380467892,1755784244964,-151.0,0.00021917,2]
[380467894,1755784244973,-16215.95,0.00021917,3]
[380467896,1755784244983,-151.0,0.00021917,2]
[380467898,1755784244993,-480.0,0.00021917,3]
[380467900,1755784245003,-500.0,0.00021917,3]
[380467902,1755784245012,-202.997424,0.00021917,10]
[380467904,1755784245021,-500.0,0.00021917,3]
[380467906,1755784245031,-480.0,0.00021917,3]
[380467908,1755784245041,-500.0,0.00021917,3]
[380467910,1755784245051,-480.0,0.00021917,3]
[380467912,1755784245060,-500.0,0.00021917,3]
[380467914,1755784245070,-151.0,0.00021917,2]
[380467916,1755784245080,-500.0,0.00021917,3]
[380467918,1755784245090,-500.0,0.00021917,3]
[380467920,1755784245100,-1413.78,0.00021917,3]
[380467922,1755784245112,-480.0,0.00021917,3]
[380467924,1755784245121,-500.0,0.00021917,3]
[380467926,1755784245131,-500.0,0.00021917,3]
[380467928,1755784245142,-500.0,0.00021917,3]
[380467930,1755784245152,-500.0,0.00021917,3]
[380467932,1755784245163,-500.0,0.00021917,3]
[380467934,1755784245173,-500.0,0.00021917,3]
[380467936,1755784245186,-3039.03,0.00021917,3]
[380467938,1755784245196,-500.0,0.00021917,3]
[380467940,1755784245206,-1735.62,0.00021917,3]
[380467942,1755784245217,-495.58253823,0.00021917,3]
[380467944,1755784245227,-1009.35,0.00021917,3]
[380467946,1755784245237,-480.0,0.00021917,3]
[380467948,1755784245247,-480.0,0.00021917,3]
[380467949,1755784245258,-480.0,0.00021917,3]
[380467951,1755784245268,-5649.49,0.00021917,3]
[380467954,1755784245279,-151.0,0.00021917,2]
[380467956,1755784245288,-494.24,0.00021917,3]
[380467958,1755784245298,-480.0,0.00021917,3]
[380467960,1755784245308,-2373.67,0.00021917,3]
[380467962,1755784245318,-480.0,0.00021917,3]
[380467964,1755784245328,-667.92,0.00021917,3]
[380467967,1755784245338,-850.63,0.00021917,3]
[380467970,1755784245348,-161.95509291,0.00021917,3]
[380467972,1755784245358,-480.0,0.00021917,3]
[380467975,1755784245368,-699.26,0.00021917,3]
[380467977,1755784245377,-151.0,0.00021917,2]
[380467979,1755784245386,-277.4211364,0.00021917,3]
[380467981,1755784245395,-480.0,0.00021917,3]
[380467983,1755784245404,-514.48,0.00021917,3]
[380467985,1755784245414,-813.92,0.00021917,3]
[380467987,1755784245423,-1049.04,0.00021917,3]
[380467989,1755784245433,-480.0,0.00021917,3]
[380467992,1755784245444,-480.0,0.00021917,3]
[380467994,1755784245453,-5049.76,0.00021917,3]
[380467996,1755784245463,-480.0,0.00021917,3]
[380467998,1755784245472,-7769.71,0.00021917,3]
[380468000,1755784245483,-480.0,0.00021917,3]
[380468002,1755784245493,-480.0,0.00021917,3]
[380468005,1755784245502,-2302.55,0.00021917,3]
[380468007,1755784245511,-460.57860834,0.00021917,3]
[380468009,1755784245521,-480.0,0.00021917,3]
[380468011,1755784245530,-835.14,0.00021917,3]
[380468014,1755784245540,-480.0,0.00021917,3]
[380468016,1755784245549,-480.0,0.00021917,3]
[380468018,1755784245559,-480.0,0.00021917,3]
[380468020,1755784245568,-480.0,0.00021917,3]
[380468022,1755784245578,-480.0,0.00021917,3]
[380468024,1755784245587,-480.0,0.00021917,3]
[380468026,1755784245597,-480.0,0.00021917,3]
[380468027,1755784245609,-480.0,0.00021917,3]
[380468029,1755784245619,-480.0,0.00021917,3]
[380468032,1755784245629,-480.0,0.00021917,3]
[380468033,1755784245638,-1029.94,0.00021917,3]
[380468035,1755784245649,-151.0,0.00021917,2]
[380468037,1755784245661,-207.23279483,0.00021917,3]
[380468040,1755784245672,-1063.09,0.00021917,3]
[380468042,1755784245683,-480.0,0.00021917,3]
[380468043,1755784245694,-2043.15,0.00021917,3]
[380468046,1755784245704,-5508.69,0.00021917,3]
[380468048,1755784245714,-2272.46,0.00021917,3]
[380468050,1755784245724,-13950.6,0.00021917,3]
[380468052,1755784245734,-480.0,0.00021917,3]
[380468053,1755784245743,-480.0,0.00021917,3]
[380468055,1755784245753,-666.76,0.00021917,3]
[380468058,1755784245762,-480.0,0.00021917,3]
[380468060,1755784245772,-445.88401595,0.00021917,3]
[380468061,1755784245782,-480.0,0.00021917,3]
[380468064,1755784245791,-292.12833219,0.00021917,3]
[380468065,1755784245800,-480.0,0.00021917,3]
[380468067,1755784245808,-1614.44,0.00021917,3]
[380468069,1755784245817,-984.13,0.00021917,3]
[380468071,1755784245827,-735.69,0.00021917,3]
[380468073,1755784245836,-273.14724219,0.00021917,3]
[380468075,1755784245846,-151.0,0.00021917,2]
[380468077,1755784245855,-480.0,0.00021917,3]
[380468079,1755784245865,-480.0,0.00021917,3]
[380468081,1755784245875,-480.0,0.00021917,3]
[380468083,1755784245884,-480.0,0.00021917,3]
[380468085,1755784245894,-480.0,0.00021917,3]
[380468087,1755784245903,-188.177582,0.00021917,2]
[380468089,1755784245913,-1920.85,0.00021917,3]
[380468091,1755784245923,-826.89,0.00021917,3]
[380468093,1755784245932,-9847.87,0.00021917,3]
[380468095,1755784245942,-480.0,0.00021917,3]
[380468097,1755784245951,-544.39,0.00021917,3]
[380468099,1755784245960,-480.0,0.00021917,3]
[380468101,1755784245970,-500.0,0.00021917,3]
[380468103,1755784245979,-480.0,0.00021917,3]
[380468105,1755784245989,-8726.56,0.00021917,3]
[380468107,1755784245998,-795.09,0.00021917,3]
[380468109,1755784246008,-168.0,0.00021921,2]
[380468112,1755784246017,-153.8265696,0.00021945,2]
[380468115,1755784246027,-1019.388,0.00021959,2]
[380468118,1755784246036,-172.43299732,0.00021959,2]
[380468121,1755784246046,-500.0,0.00021973,2]
[380468124,1755784246056,-500.0,0.00021973,2]
[380468127,1755784246065,-500.0,0.00021973,2]
[380468130,1755784246074,-500.0,0.00021973,2]
[380468133,1755784246084,-500.22444816,0.00021973,2]
[380468136,1755784246093,-500.0,0.00021973,2]
[380468139,1755784246103,-500.0,0.00021973,2]
[380468142,1755784246116,-500.64224986,0.00021973,2]
[380468145,1755784246126,-500.0,0.00021973,2]
[380468148,1755784246136,-500.0,0.00021973,2]
[380468151,1755784246146,-500.0,0.00021973,2]
[380468154,1755784246156,-500.0,0.00021973,2]
[380468156,1755784246166,-500.0,0.00021973,2]
[380468158,1755784246176,-500.0,0.00021973,2]
[380468160,1755784246185,-510.97540017,0.00021973,2]
[380468162,1755784246195,-151.0,0.00021973,7]
[380468164,1755784246205,-151.0,0.00021973,7]
[380468166,1755784246215,-151.0,0.00021973,7]
[380468168,1755784246227,-151.0,0.00021973,7]
[380468170,1755784246237,-151.0,0.00021973,7]
[380468172,1755784246247,-151.0,0.00021973,7]
[380468174,1755784246257,-151.0,0.00021973,7]
[380468176,1755784246266,-151.0,0.00021973,7]
[380468178,1755784246275,-151.0,0.00021973,7]
[380468180,1755784246285,-151.0,0.00021973,7]
[380468182,1755784246294,-151.0,0.00021973,7]
[380468184,1755784246304,-151.0,0.00021973,7]
[380468186,1755784246314,-151.0,0.00021973,7]
[380468188,1755784246323,-151.0,0.00021973,7]
[380468190,1755784246332,-151.0,0.00021973,7]
[380468192,1755784246342,-151.0,0.00021973,7]
[380468194,1755784246351,-223.019689,0.00021973,7]
[380468196,1755784246363,-151.0,0.00021973,7]
[380468198,1755784246372,-151.0,0.00021973,7]
[380468200,1755784246382,-151.0,0.00021973,7]
[380468202,1755784246392,-691.45,0.00022,7]
[380468204,1755784246401,-926.06615746,0.00022023,2]
[380468206,1755784246412,-168.0,0.00022061,2]
[380468208,1755784246421,-250.0,0.000221,10]
[380468210,1755784246431,-500.0,0.00022156,2]
[380468212,1755784246440,-500.0,0.00022173,2]
[380468214,1755784246450,-504.62513227,0.00022173,2]
[380468216,1755784246459,-504.92472946,0.00022173,2]
[380468218,1755784246469,-500.0,0.00022173,2]
[380468220,1755784246478,-500.0,0.00022173,2]
[380468222,1755784246487,-503.29539769,0.00022173,2]
[380468224,1755784246500,-500.0,0.00022173,2]
[380468226,1755784246514,-507.73976705,0.00022173,2]
[380468228,1755784246524,-500.0,0.00022173,2]
[380468230,1755784246534,-500.0,0.00022173,2]
[380468232,1755784246543,-500.0,0.00022173,2]
[380468235,1755784246555,-500.0,0.00022173,2]
[380468237,1755784246564,-324.24714244,0.00022173,2]
[380468239,1755784246574,-506.64048263,0.00022173,2]
[380468241,1755784246583,-500.0,0.00022173,2]
[380468243,1755784246593,-500.0,0.00022173,2]
[380468244,1755784246603,-500.0,0.00022173,2]
[380468246,1755784246616,-500.0,0.00022173,2]
[380468249,1755784246626,-171.71310917,0.00022173,2]
[380468251,1755784246637,-500.0,0.00022173,2]
[380468253,1755784246647,-500.0,0.00022173,2]
[380468255,1755784246657,-500.0,0.00022173,2]
[380468257,1755784246666,-500.0,0.00022173,2]
[380468259,1755784246676,-500.0,0.00022173,2]
[380468261,1755784246686,-500.0,0.00022173,2]
[380468263,1755784246698,-500.0,0.00022173,2]
[380468265,1755784246708,-519.97606643,0.00022173,2]
[380468267,1755784246718,-2079.90426572,0.00022173,2]
[380468269,1755784246727,-4675.10481327,0.00022173,2]
[380468271,1755784246737,-500.0,0.0002219,8]
[380468273,1755784246747,-500.0,0.0002219,8]
[380468275,1755784246757,-480.0,0.00022191,3]
[380468277,1755784246766,-441.20300805,0.00022191,3]
[380468279,1755784246776,-231.62408221,0.00022191,3]
[380468281,1755784246785,-480.0,0.00022191,3]
[380468283,1755784246795,-480.0,0.00022191,3]
[380468285,1755784246804,-257.14184334,0.00022191,3]
[380468287,1755784246813,-480.0,0.00022191,3]
[380468289,1755784246823,-480.0,0.00022191,3]
[380468291,1755784246833,-480.0,0.00022191,3]
[380468293,1755784246843,-480.0,0.00022191,3]
[380468295,1755784246853,-803.75,0.00022191,3]
[380468297,1755784246865,-735.07,0.00022191,3]
[380468316,1755784247027,-480.0,0.00022191,3]
[380468318,1755784247036,-480.0,0.00022191,3]
[380468320,1755784247046,-480.0,0.00022191,3]
[380468322,1755784247055,-557.72,0.00022191,3]
[380468324,1755784247065,-480.0,0.00022191,3]
[380468326,1755784247075,-480.0,0.00022191,3]
[380468327,1755784247084,-151.755237,0.00022191,7]
[380468329,1755784247094,-480.0,0.00022191,3]
[380468331,1755784247103,-480.0,0.00022191,3]
[380468333,1755784247115,-421.80046204,0.00022191,3]
[380468335,1755784247125,-151.0,0.00022191,7]
[380468337,1755784247135,-480.0,0.00022191,3]
[380468339,1755784247144,-151.0,0.00022191,7]